bitfinex-derivatives/quotes_BNBF0:USTF0_20260114
["timestamp","ask_amount","ask_price","bid_price","bid_amount"]
[1768409776040,0.75082651,945.64,943.34,0.18417863]
[1768409776239,0.75082651,945.63,943.34,0.18417863]
[1768409776544,0.75082651,945.62,943.34,0.18417863]
[1768409776743,0.75082651,945.61,943.34,0.18417863]
[1768409776944,0.75082651,945.6,943.34,0.18417863]
[1768409777140,0.75082651,945.59,943.34,0.18417863]
[1768409777345,0.75082651,945.58,943.34,0.18417863]
[1768409777546,0.75082651,945.57,943.34,0.18417863]
[1768409777841,0.75082651,945.56,943.34,0.18417863]
[1768409778046,0.75082651,945.55,943.34,0.18417863]
[1768409778243,0.75082651,945.54,943.34,0.18417863]
[1768409778443,0.75082651,945.53,943.34,0.18417863]
[1768409778643,0.75082651,945.52,943.34,0.18417863]
[1768409778847,0.75082651,945.51,943.34,0.18417863]
[1768409779048,0.75082651,945.5,943.34,0.18417863]
[1768409779249,0.75082651,945.49,943.34,0.18417863]
[1768409779449,0.75082651,945.48,943.34,0.18417863]
[1768409779646,0.75082651,945.47,943.34,0.18417863]
[1768409779849,0.75082651,945.46,943.34,0.18417863]
[1768409780044,0.75082651,945.45,943.34,0.18417863]
[1768409780348,0.75082651,945.44,943.34,0.18417863]
[1768409780545,0.75082651,945.43,943.34,0.18417863]
[1768409780845,0.75082651,945.42,943.34,0.18417863]
[1768409781050,0.75082651,945.41,943.34,0.18417863]
[1768409781350,0.75082651,945.4,943.34,0.18417863]
[1768409781550,0.75082651,945.39,943.34,0.18417863]
[1768409781744,0.75082651,945.38,943.34,0.18417863]
[1768409781945,0.75082651,945.37,943.34,0.18417863]
[1768409782148,0.75082651,945.36,943.34,0.18417863]
[1768409782346,0.75082651,945.35,943.34,0.18417863]
[1768409782650,0.75082651,945.34,943.34,0.18417863]
[1768409782851,0.75082651,945.33,943.34,0.18417863]
[1768409783150,0.75082651,945.32,943.34,0.18417863]
[1768409783450,0.75082651,945.31,943.34,0.18417863]
[1768409783645,0.75082651,945.3,943.34,0.18417863]
[1768409783851,0.75082651,945.29,943.34,0.18417863]
[1768409784050,0.75082651,945.28,943.34,0.18417863]
[1768409784245,0.75082651,945.27,943.34,0.18417863]
[1768409784551,0.75082651,945.26,943.34,0.18417863]
[1768409784745,0.01060209,946.25,943.34,0.18417863]
[1768409784746,0.75082651,945.25,943.34,0.18417863]
[1768409784950,0.75082651,945.24,943.34,0.18417863]
[1768409785247,0.75082651,945.23,943.34,0.18417863]
[1768409785449,0.75082651,945.22,943.34,0.18417863]
[1768409785652,0.75082651,945.21,943.34,0.18417863]
[1768409785851,0.75082651,945.2,943.34,0.18417863]
[1768409786151,0.7509402,945.19,943.34,0.18417863]
[1768409786450,0.7509402,945.18,943.34,0.18417863]
[1768409786650,0.7509402,945.17,943.34,0.18417863]
[1768409786847,0.7509402,945.16,943.34,0.18417863]
[1768409787046,0.7509402,945.15,943.34,0.18417863]
[1768409787248,0.7509402,945.14,943.34,0.18417863]
[1768409787451,0.7509402,945.13,943.34,0.18417863]
[1768409787647,0.7509402,945.12,943.34,0.18417863]
[1768409787849,0.7509402,945.11,943.34,0.18417863]
[1768409788152,0.7509402,945.1,943.34,0.18417863]
[1768409788352,0.7509402,945.09,943.34,0.18417863]
[1768409788553,0.75133281,945.08,943.34,0.18417863]
[1768409788754,0.75133281,945.07,943.34,0.18417863]
[1768409789054,0.75133281,945.06,943.34,0.18417863]
[1768409789253,0.75133281,945.05,943.34,0.18417863]
[1768409789454,0.75133281,945.04,943.34,0.18417863]
[1768409789653,0.75133281,945.03,943.34,0.18417863]
[1768409789853,0.75133281,945.02,943.34,0.18417863]
[1768409790050,0.75133281,945.01,943.34,0.18417863]
[1768409790254,0.75133281,945.0,943.34,0.18417863]
[1768409790453,0.75133281,944.99,943.34,0.18417863]
[1768409790755,0.75133281,944.98,943.34,0.18417863]
[1768409791054,0.75133281,944.97,943.34,0.18417863]
[1768409791251,0.75133281,944.96,943.34,0.18417863]
[1768409791456,0.75133281,944.95,943.34,0.18417863]
[1768409791756,0.75133281,944.94,942.93,2.62219105]
[1768409791955,0.75133281,944.93,942.93,2.62219105]
[1768409792154,0.75133281,944.92,943.27,0.18426006]
[1768409792356,0.75133281,944.91,943.27,0.18426006]
[1768409792555,0.75133281,944.9,943.27,0.18426006]
[1768409792755,0.75133281,944.89,943.27,0.18426006]
[1768409792955,0.75133281,944.88,943.27,0.18426006]
[1768409793154,0.75133281,944.87,943.27,0.18426006]
[1768409793352,0.75133281,944.86,943.27,0.18426006]
[1768409793557,0.75133281,944.85,943.27,0.18426006]
[1768409793757,0.75133281,944.84,943.27,0.18426006]
[1768409793958,0.75133281,944.83,942.79,2.62219105]
[1768409794254,0.75133281,944.82,943.09,0.18428348]
[1768409794555,0.75133281,944.81,943.09,0.18428348]
[1768409794754,0.75133281,944.8,943.09,0.18428348]
[1768409794958,0.75133281,944.79,943.09,0.18428348]
[1768409795257,0.75133281,944.78,943.09,0.18428348]
[1768409795458,0.75133281,944.77,943.09,0.18428348]
[1768409795654,0.75133281,944.76,943.09,0.18428348]
[1768409795959,0.75133281,944.75,943.09,0.18428348]
[1768409796257,0.75133281,944.74,943.09,0.18428348]
[1768409796453,0.75133281,944.73,943.09,0.18428348]
[1768409796658,0.75133281,944.72,943.09,0.18428348]
[1768409796858,0.75133281,944.71,943.09,0.18428348]
[1768409797059,0.75133281,944.7,943.09,0.18428348]
[1768409797258,0.75133281,944.69,943.09,0.18428348]
[1768409797454,0.75133281,944.68,943.09,0.18428348]
[1768409797755,0.75133281,944.67,943.09,0.18428348]
[1768409797956,0.75133281,944.66,943.09,0.18428348]
[1768409798158,0.75133281,944.65,943.09,0.18428348]
[1768409798360,0.75133281,944.64,943.09,0.18428348]
[1768409798659,0.75133281,944.63,943.09,0.18428348]
[1768409798856,0.75133281,944.62,943.09,0.18428348]
[1768409799058,0.75133281,944.61,943.09,0.18428348]
[1768409799260,0.75133281,944.6,943.09,0.18428348]
[1768409799559,0.00969346,945.57,943.09,0.18428348]
[1768409799560,0.75133281,944.59,943.09,0.18428348]
[1768409799760,0.75133281,944.58,943.09,0.18428348]
[1768409800056,0.75133281,944.57,943.09,0.18428348]
[1768409800261,0.75133281,944.56,943.09,0.18428348]
[1768409800460,0.75133281,944.55,943.09,0.18428348]
[1768409800757,0.75133281,944.54,943.09,0.18428348]
[1768409800959,0.75133281,944.53,943.09,0.18428348]
[1768409801156,0.75133281,944.52,943.09,0.18428348]
[1768409801456,0.75133281,944.51,942.59,2.62219105]
[1768409801656,0.75133281,944.51,942.21,3.67106748]
[1768409801657,0.75133281,944.5,942.87,0.18433521]
[1768409801958,0.75133281,944.49,942.87,0.18433521]
[1768409802156,0.75133281,944.48,942.87,0.18433521]
[1768409802355,6.70536139,945.0,942.87,0.18433521]
[1768409802356,0.75133281,944.47,942.87,0.18433521]
[1768409802558,0.75133281,944.46,942.87,0.18433521]
[1768409802755,0.75133281,944.45,942.87,0.18433521]
[1768409802956,0.75133281,944.44,942.87,0.18433521]
[1768409803255,0.75133281,944.43,942.87,0.18433521]
[1768409803459,0.75133281,944.42,942.87,0.18433521]
[1768409803660,0.75133281,944.41,942.87,0.18433521]
[1768409803860,0.75133281,944.4,942.87,0.18433521]
[1768409804057,0.75133281,944.39,942.87,0.18433521]
[1768409804260,0.75133281,944.38,942.87,0.18433521]
[1768409804461,0.75133281,944.37,942.87,0.18433521]
[1768409804657,0.75133281,944.36,942.87,0.18433521]
[1768409804861,0.75133281,944.35,942.87,0.18433521]
[1768409805061,0.75133281,944.34,942.87,0.18433521]
[1768409805261,0.75133281,944.33,942.87,0.18433521]
[1768409805458,0.75133281,944.32,942.28,2.62219105]
[1768409805664,0.75133281,944.31,942.2,2.62219105]
[1768409805862,0.75133281,944.3,942.72,0.18437477]
[1768409806156,0.75133281,944.29,942.72,0.18437477]
[1768409806459,0.75133281,944.28,942.72,0.18437477]
[1768409806664,0.75133281,944.27,942.72,0.18437477]
[1768409806961,6.70536139,945.0,942.72,0.18437477]
[1768409806962,0.75133281,944.26,942.72,0.18437477]
[1768409807164,0.75133281,944.25,942.72,0.18437477]
[1768409807364,0.75133281,944.24,942.72,0.18437477]
[1768409807559,0.75133281,944.23,942.72,0.18437477]
[1768409807764,0.76394315,944.22,942.72,0.18437477]
[1768409807965,0.76394315,944.21,942.72,0.18437477]
[1768409808164,0.76394315,944.2,942.72,0.18437477]
[1768409808361,0.7636447,944.19,942.72,0.18437477]
[1768409808559,0.7636447,944.18,942.72,0.18437477]
[1768409808771,0.7636447,944.17,942.72,0.18437477]
[1768409808963,0.7636447,944.16,942.72,0.18437477]
[1768409809161,0.7636447,944.15,942.72,0.18437477]
[1768409809364,0.7636447,944.14,942.72,0.18437477]
[1768409809561,0.7636447,944.13,942.72,0.18437477]
[1768409809766,0.7636447,944.12,942.72,0.18437477]
[1768409809968,0.7636447,944.11,942.72,0.18437477]
[1768409810164,0.7636447,944.1,942.72,0.18437477]
[1768409810365,0.7636447,944.09,942.72,0.18437477]
[1768409810560,0.7636447,944.08,942.72,0.18437477]
[1768409810761,0.7636447,944.07,942.72,0.18437477]
[1768409810967,0.7636447,944.06,942.72,0.18437477]
[1768409811167,0.7636447,944.05,942.72,0.18437477]
[1768409811366,0.7636447,944.04,942.72,0.18437477]
[1768409811566,0.7636447,944.03,942.72,0.18437477]
[1768409811866,0.7636447,944.02,942.72,0.18437477]
[1768409812064,0.7636447,944.01,942.72,0.18437477]
[1768409812265,0.76334153,944.0,942.72,0.18437477]
[1768409812466,0.76334153,943.99,942.72,0.18437477]
[1768409812666,0.76334153,943.98,942.72,0.18437477]
[1768409812866,0.76334153,943.97,942.72,0.18437477]
[1768409813065,0.76334153,943.96,942.72,0.18437477]
[1768409813370,0.76334153,943.95,942.72,0.18437477]
[1768409813569,0.76334153,943.94,942.72,0.18437477]
[1768409813769,0.76334153,943.93,942.72,0.18437477]
[1768409813970,0.0119548,944.92,942.72,0.18437477]
[1768409813971,0.76334153,943.92,942.72,0.18437477]
[1768409814170,0.76334153,943.91,942.72,0.18437477]
[1768409814471,0.76334153,943.9,942.72,0.18437477]
[1768409814669,0.76334153,943.89,942.72,0.18437477]
[1768409814870,6.70536139,945.0,942.72,0.18437477]
[1768409815173,0.00857202,944.84,942.72,0.18437477]
[1768409815367,0.76335457,944.83,942.72,0.18437477]
[1768409815573,6.70536139,945.0,942.72,0.18437477]
[1768409818074,0.76333462,944.99,942.72,0.18437477]
[1768409818376,0.76333462,944.98,942.72,0.18437477]
[1768409818572,0.76333462,944.97,942.72,0.18437477]
[1768409818872,0.76333462,944.96,942.72,0.18437477]
[1768409819071,0.76333462,944.95,942.72,0.18437477]
[1768409819271,0.76333462,944.94,942.72,0.18437477]
[1768409819475,0.76333462,944.93,942.72,0.18437477]
[1768409819771,0.76333462,944.92,942.72,0.18437477]
[1768409819975,0.76333462,944.91,942.72,0.18437477]
[1768409820177,0.76333462,944.9,942.72,0.18437477]
[1768409820472,0.76333462,944.89,942.72,0.18437477]
[1768409820677,0.76333462,944.88,942.72,0.18437477]
[1768409820876,0.76333462,944.87,942.72,0.18437477]
[1768409821073,0.76333462,944.86,942.72,0.18437477]
[1768409821274,0.76333462,944.85,942.72,0.18437477]
[1768409821473,0.76333462,944.84,942.72,0.18437477]
[1768409821678,0.76333462,944.83,942.72,0.18437477]
[1768409821878,0.76333462,944.82,942.72,0.18437477]
[1768409822178,0.76333462,944.81,942.72,0.18437477]
[1768409822374,0.76333462,944.8,942.72,0.18437477]
[1768409822575,0.76333462,944.79,942.72,0.18437477]
[1768409822875,0.76333462,944.78,942.72,0.18437477]
[1768409823079,0.76333462,944.77,942.72,0.18437477]
[1768409823278,0.76333462,944.76,942.72,0.18437477]
[1768409823475,0.76333462,944.75,942.72,0.18437477]
[1768409823675,0.76333462,944.74,942.72,0.18437477]
[1768409823979,0.76333462,944.73,942.72,0.18437477]
[1768409824180,0.76333462,944.72,942.72,0.18437477]
[1768409824476,0.76333462,944.71,942.72,0.18437477]
[1768409824679,0.76333462,944.7,942.72,0.18437477]
[1768409824874,0.76333462,944.69,942.72,0.18437477]
[1768409825082,0.76333462,944.68,942.72,0.18437477]
[1768409825376,0.76333462,944.67,942.72,0.18437477]
[1768409825576,0.76333462,944.66,942.72,0.18437477]
[1768409825774,0.76333462,944.65,942.72,0.18437477]
[1768409825979,0.76333462,944.64,942.72,0.18437477]
[1768409826275,0.76333462,944.63,942.72,0.18437477]
[1768409826476,0.76333462,944.62,942.72,0.18437477]
[1768409826678,0.76333462,944.61,942.72,0.18437477]
[1768409826975,0.76333462,944.6,942.72,0.18437477]
[1768409827176,0.76333462,944.59,942.72,0.18437477]
[1768409827378,0.76333462,944.58,942.72,0.18437477]
[1768409827578,0.76333462,944.57,942.72,0.18437477]
[1768409827781,0.76333462,944.56,942.72,0.18437477]
[1768409827981,0.76333462,944.55,942.72,0.18437477]
[1768409828176,0.76333462,944.54,942.72,0.18437477]
[1768409828376,0.76333462,944.53,942.72,0.18437477]
[1768409828581,0.76333462,944.52,942.72,0.18437477]
[1768409828881,0.76333462,944.51,942.72,0.18437477]
[1768409829076,0.76333462,944.5,942.72,0.18437477]
[1768409829276,0.76333462,944.49,942.72,0.18437477]
[1768409829478,0.76333462,944.48,942.72,0.18437477]
[1768409829679,0.76333462,944.47,942.72,0.18437477]
[1768409829881,0.76333462,944.46,942.72,0.18437477]
[1768409830178,0.76333462,944.45,942.72,0.18437477]
[1768409830482,0.76333462,944.44,942.72,0.18437477]
[1768409830678,0.76333462,944.43,942.72,0.18437477]
[1768409830877,0.76333462,944.42,942.72,0.18437477]
[1768409831081,0.76333462,944.41,942.72,0.18437477]
[1768409831277,0.76333462,944.4,942.72,0.18437477]
[1768409831482,0.76333462,944.39,942.72,0.18437477]
[1768409831682,0.76333462,944.38,942.72,0.18437477]
[1768409831982,0.76333462,944.37,942.72,0.18437477]
[1768409832179,0.76333462,944.36,942.72,0.18437477]
[1768409832378,0.18427128,944.97,942.72,0.18437477]
[1768409832379,0.76333462,944.35,942.72,0.18437477]
[1768409832581,0.76333462,944.34,942.72,0.18437477]
[1768409832883,0.76333462,944.33,942.72,0.18437477]
[1768409833079,0.76333462,944.32,942.72,0.18437477]
[1768409833283,0.76333462,944.31,942.72,0.18437477]
[1768409833485,0.76333462,944.3,942.72,0.18437477]
[1768409833680,0.76333462,944.29,942.72,0.18437477]
[1768409833880,0.76333462,944.28,942.72,0.18437477]
[1768409834081,0.76333462,944.27,942.72,0.18437477]
[1768409834384,0.76333462,944.26,942.72,0.18437477]
[1768409834683,0.76333462,944.25,942.72,0.18437477]
[1768409834883,0.76333462,944.24,942.72,0.18437477]
[1768409835183,0.76333462,944.23,942.72,0.18437477]
[1768409835385,0.76333462,944.22,942.72,0.18437477]
[1768409835585,0.76333462,944.21,942.72,0.18437477]
[1768409835885,0.18427128,944.97,942.72,0.18437477]
[1768409835886,0.76333462,944.2,942.72,0.18437477]
[1768409836085,0.76333462,944.19,942.72,0.18437477]
[1768409836387,0.76333462,944.18,942.72,0.18437477]
[1768409836582,0.76333462,944.17,942.72,0.18437477]
[1768409836886,0.76333462,944.16,942.72,0.18437477]
[1768409837089,0.76333462,944.15,942.72,0.18437477]
[1768409837286,0.76333462,944.14,942.72,0.18437477]
[1768409837486,0.76333462,944.13,942.72,0.18437477]
[1768409837685,0.76333462,944.12,942.72,0.18437477]
[1768409837885,0.76333462,944.11,942.72,0.18437477]
[1768409838085,0.76333462,944.1,942.72,0.18437477]
[1768409838289,0.76333462,944.09,942.72,0.18437477]
[1768409838490,0.76333462,944.08,942.72,0.18437477]
[1768409838690,0.76333462,944.07,942.72,0.18437477]
[1768409838886,0.76333462,944.06,942.72,0.18437477]
[1768409839089,0.76333462,944.05,942.72,2.80656582]
[1768409839290,0.76333462,944.04,942.72,2.80656582]
[1768409839487,0.76333462,944.03,942.72,2.80656582]
[1768409839692,0.76333462,944.02,942.72,2.80656582]
[1768409839889,0.76333462,944.01,942.72,2.80656582]
[1768409840094,0.76333462,944.0,942.74,2.62219105]
[1768409840392,0.76333462,943.99,942.74,2.62219105]
[1768409840587,0.76333462,943.98,942.74,2.62219105]
[1768409840787,0.76333462,943.97,942.74,2.62219105]
[1768409840989,0.76333462,943.96,942.74,2.62219105]
[1768409841189,0.76333462,943.95,942.74,2.62219105]
[1768409841388,0.76333462,943.94,942.74,2.62219105]
[1768409841591,0.76333462,943.93,942.74,2.62219105]
[1768409841792,0.76333462,943.92,942.75,2.62219105]
[1768409841992,0.76333462,943.91,942.75,2.62219105]
[1768409842189,0.76333462,943.9,942.75,2.62219105]
[1768409842489,0.76333462,943.89,942.75,2.62219105]
[1768409842793,0.76333462,943.88,942.87,2.62219105]
[1768409842993,0.76333462,943.87,942.87,2.62219105]
[1768409843287,0.76333462,943.86,942.87,2.62219105]
[1768409843490,0.76333462,943.85,942.87,2.62219105]
[1768409843688,0.01154469,944.82,942.87,2.62219105]
[1768409843888,0.77720823,944.81,942.87,2.62219105]
[1768409844087,0.77720823,944.8,942.87,2.62219105]
[1768409844292,0.77720823,944.79,942.86,2.62219105]
[1768409844592,0.77720823,944.78,942.86,2.62219105]
[1768409844790,0.77720823,944.77,942.86,2.62219105]
[1768409844994,0.77720823,944.76,942.86,2.62219105]
[1768409845193,0.77720823,944.75,942.86,2.62219105]
[1768409845391,0.77720823,944.74,942.85,2.62219105]
[1768409845595,0.77720823,944.73,942.85,2.62219105]
[1768409845790,0.77720823,944.72,942.87,2.62219105]
[1768409845997,0.77720823,944.71,942.87,2.62219105]
[1768409846198,0.77720823,944.7,942.87,2.62219105]
[1768409846394,0.18427128,944.97,942.86,2.62219105]
[1768409846395,0.77720823,944.69,942.86,2.62219105]
[1768409846600,0.77720823,944.68,942.86,2.62219105]
[1768409846796,0.77720823,944.67,942.86,2.62219105]
[1768409847100,0.77720823,944.66,942.72,2.80656582]
[1768409847300,0.77720823,944.65,942.72,0.18437477]
[1768409847494,0.77720823,944.64,942.72,0.18437477]
[1768409847698,0.77720823,944.63,942.72,0.18437477]
[1768409847999,0.77720823,944.62,942.72,0.18437477]
[1768409848298,0.77720823,944.61,942.72,0.18437477]
[1768409848502,0.77720823,944.6,942.72,0.18437477]
[1768409848702,0.77720823,944.59,942.72,0.18437477]
[1768409848903,0.77720823,944.58,942.72,0.18437477]
[1768409849201,0.77720823,944.57,942.72,0.18437477]
[1768409849401,0.77720823,944.56,942.72,0.18437477]
[1768409849601,0.77720823,944.55,942.72,0.18437477]
[1768409849902,0.77720823,944.54,942.72,0.18437477]
[1768409850199,0.77720823,944.53,942.72,0.18437477]
[1768409850402,0.77720823,944.52,942.72,0.18437477]
[1768409850698,0.77720823,944.51,942.72,0.18437477]
[1768409850899,0.77720823,944.5,942.72,0.18437477]
[1768409851101,0.77720823,944.49,942.72,0.18437477]
[1768409851301,0.77720823,944.48,942.72,0.18437477]
[1768409851603,0.77720823,944.47,942.73,2.62219105]
[1768409851900,0.77720823,944.46,942.73,2.62219105]
[1768409852105,0.77720823,944.45,942.73,2.62219105]
[1768409852402,0.77720823,944.44,942.73,2.62219105]
[1768409852605,0.77720823,944.43,942.73,2.62219105]
[1768409852805,0.77720823,944.42,942.73,2.62219105]
[1768409853006,0.77720823,944.41,942.73,2.62219105]
[1768409853202,0.77720823,944.4,942.73,2.62219105]
[1768409853407,0.77720823,944.39,942.73,2.62219105]
[1768409853604,0.77720823,944.38,942.74,2.62219105]
[1768409853807,0.77720823,944.37,942.74,2.62219105]
[1768409854006,0.77720823,944.36,942.74,2.62219105]
[1768409854206,0.77720823,944.35,942.74,2.62219105]
[1768409854409,0.77720823,944.34,942.74,2.62219105]
[1768409854606,0.77720823,944.33,942.75,2.62219105]
[1768409854805,0.77720823,944.32,942.75,2.62219105]
[1768409855005,0.77573696,944.31,942.75,2.62219105]
[1768409855205,0.77573696,944.3,942.75,2.62219105]
[1768409855511,0.77573696,944.29,942.75,2.62219105]
[1768409855707,0.77573696,944.28,942.76,2.62219105]
[1768409855906,0.77573696,944.27,942.76,2.62219105]
[1768409856106,0.77573696,944.26,942.83,2.62219105]
[1768409856311,0.77573696,944.25,942.83,2.62219105]
[1768409856505,0.77573696,944.24,942.83,2.62219105]
[1768409856708,0.77573696,944.23,942.83,2.62219105]
[1768409856910,0.77573696,944.22,942.83,2.62219105]
[1768409857208,0.77573696,944.21,942.84,2.62219105]
[1768409857407,0.77573696,944.2,942.84,2.62219105]
[1768409857612,0.77573696,944.19,942.83,2.62219105]
[1768409857812,0.77573696,944.18,942.83,2.62219105]
[1768409858112,0.77573696,944.17,942.82,2.62219105]
[1768409858311,0.77573696,944.16,942.82,2.62219105]
[1768409858511,0.77573696,944.15,942.82,2.62219105]
[1768409858812,0.77573696,944.14,942.82,2.62219105]
[1768409859012,0.77573696,944.13,942.82,2.62219105]
[1768409859211,0.77573696,944.12,942.82,2.62219105]
[1768409859413,0.77573696,944.11,942.82,2.62219105]
[1768409859713,0.77573696,944.1,942.8,2.62219105]
[1768409860011,0.77573696,944.09,942.8,2.62219105]
[1768409860213,0.77573696,944.08,942.76,2.62219105]
[1768409860413,0.77573696,944.07,942.76,2.62219105]
[1768409860713,0.77573696,944.06,942.76,2.62219105]
[1768409860916,0.77573696,944.05,942.76,2.62219105]
[1768409861115,0.77573696,944.04,942.76,2.62219105]
[1768409861414,6.83880911,944.97,942.76,2.62219105]
[1768409861415,0.77573696,944.03,942.76,2.62219105]
[1768409861615,0.77573696,944.02,942.76,2.62219105]
[1768409861910,0.77573696,944.01,942.76,2.62219105]
[1768409862215,0.77573696,944.0,942.76,2.62219105]
[1768409862416,0.77573696,943.99,942.76,2.62219105]
[1768409862617,0.77573696,943.98,942.76,2.62219105]
[1768409862913,0.77573696,943.97,942.76,2.62219105]
[1768409863216,0.77573696,943.96,942.76,2.62219105]
[1768409863416,0.77573696,943.95,942.76,2.62219105]
[1768409863617,0.77573696,943.94,942.76,2.62219105]
[1768409863819,0.77573696,943.93,942.89,2.62219105]
[1768409864018,0.77573696,943.92,942.89,2.62219105]
[1768409864315,0.77573696,943.91,942.85,2.62219105]
[1768409864518,0.77573696,943.9,942.85,2.62219105]
[1768409864814,0.77573696,943.89,942.85,2.62219105]
[1768409865014,0.77573696,943.88,942.86,2.62219105]
[1768409865214,0.77573696,943.87,942.86,2.62219105]
[1768409865413,0.77573696,943.86,942.86,2.62219105]
[1768409865619,0.77573696,943.85,942.86,2.62219105]
[1768409865819,0.77573696,943.84,942.86,2.62219105]
[1768409866019,0.77573696,943.83,942.86,2.62219105]
[1768409866218,0.77573696,943.82,942.86,2.62219105]
[1768409866423,0.77573696,943.81,942.86,2.62219105]
[1768409866618,0.77573696,943.8,942.86,2.62219105]
[1768409866920,0.77573696,943.79,942.86,2.62219105]
[1768409867122,0.77573696,943.78,942.86,2.62219105]
[1768409867319,0.77573696,943.77,942.86,2.62219105]
[1768409867516,0.15019534,943.76,942.86,2.62219105]
[1768409867717,0.01035482,944.74,942.86,2.62219105]
[1768409867919,0.18427128,944.97,942.84,2.62219105]
[1768409868523,0.18427128,944.97,942.85,2.62219105]
[1768409869023,0.18427128,944.97,942.84,2.62219105]
[1768409869520,0.18427128,944.97,942.85,2.62219105]
[1768409873622,0.18427128,944.97,942.72,0.18437477]
[1768409879631,0.76640822,944.96,942.72,0.18437477]
[1768409879832,0.76640822,944.95,942.72,0.18437477]
[1768409880128,0.76640822,944.94,942.72,0.18437477]
[1768409880331,0.76640822,944.93,942.72,0.18437477]
[1768409880532,0.76640822,944.92,942.72,0.18437477]
[1768409880731,0.18427128,944.97,942.72,0.18437477]
[1768409880732,0.76640822,944.91,942.72,0.18437477]
[1768409880928,0.76640822,944.9,942.72,0.18437477]
[1768409881133,0.76640822,944.89,942.72,0.18437477]
[1768409881433,0.76661176,944.88,942.72,2.80656582]
[1768409881632,0.76661176,944.87,942.72,2.80656582]
[1768409881932,0.76695542,944.86,942.72,2.80656582]
[1768409882129,0.76695542,944.85,942.72,2.80656582]
[1768409882326,0.76695542,944.84,942.72,2.80656582]
[1768409882528,0.76695542,944.83,942.72,2.80656582]
[1768409882731,0.76695542,944.82,942.72,2.80656582]
[1768409882927,0.76695542,944.81,942.72,2.80656582]
[1768409883130,0.76695542,944.8,942.72,2.80656582]
[1768409883329,0.76695542,944.79,942.72,2.80656582]
[1768409883532,0.76695542,944.78,942.72,2.80656582]
[1768409883732,0.76695542,944.77,942.72,2.80656582]
[1768409883932,0.76695542,944.76,942.72,2.80656582]
[1768409884231,0.76695542,944.75,942.72,2.80656582]
[1768409884428,0.76695542,944.74,942.72,2.80656582]
[1768409884632,0.76695542,944.73,942.72,2.80656582]
[1768409884929,0.76695542,944.72,942.72,2.80656582]
[1768409885129,0.76695542,944.71,942.72,2.80656582]
[1768409885329,0.76695542,944.7,942.72,2.80656582]
[1768409885631,0.76695542,944.69,942.72,2.80656582]
[1768409885826,0.76695542,944.68,942.72,2.80656582]
[1768409886027,0.76695542,944.67,942.72,2.80656582]
[1768409886232,0.76695542,944.66,942.72,2.80656582]
[1768409886432,0.76695542,944.65,942.72,2.80656582]
[1768409886729,0.76695542,944.64,942.72,2.80656582]
[1768409886928,0.76695542,944.63,942.72,2.80656582]
[1768409887130,0.76695542,944.62,942.73,2.62219105]
[1768409887330,0.76695542,944.61,942.73,2.62219105]
[1768409887534,0.76695542,944.6,942.73,2.62219105]
[1768409887728,0.76695542,944.59,942.73,2.62219105]
[1768409887931,0.76695542,944.58,942.73,2.62219105]
[1768409888131,0.76695542,944.57,942.73,2.62219105]
[1768409888432,0.76695542,944.56,942.73,2.62219105]
[1768409888633,0.76695542,944.55,942.74,2.62219105]
[1768409888830,0.76695542,944.54,942.74,2.62219105]
[1768409889036,0.76695542,944.53,942.74,2.62219105]
[1768409889234,0.76695542,944.52,942.74,2.62219105]
[1768409889431,0.76695542,944.51,942.74,2.62219105]
[1768409889630,0.76695542,944.5,942.74,2.62219105]
[1768409889830,0.76695542,944.49,942.75,2.62219105]
[1768409890035,0.76695542,944.48,942.75,2.62219105]
[1768409890233,0.76695542,944.47,942.75,2.62219105]
[1768409890436,0.76695542,944.46,942.75,2.62219105]
[1768409890637,0.76695542,944.45,942.75,2.62219105]
[1768409890838,0.76695542,944.44,942.75,2.62219105]
[1768409891038,0.76695542,944.43,942.75,2.62219105]
[1768409891237,0.76695542,944.42,942.75,2.62219105]
[1768409891533,0.76695542,944.41,942.76,2.62219105]
[1768409891737,0.76695542,944.4,942.76,2.62219105]
[1768409892038,0.76695542,944.39,942.76,2.62219105]
[1768409892234,0.76695542,944.38,942.76,2.62219105]
[1768409892437,0.76695542,944.37,942.76,2.62219105]
[1768409892638,0.76819536,944.36,942.76,2.62219105]
[1768409892833,0.76819536,944.35,942.76,2.62219105]
[1768409893034,0.76819536,944.34,942.76,2.62219105]
[1768409893337,0.76819536,944.33,942.76,2.62219105]
[1768409893534,0.76819536,944.32,942.76,2.62219105]
[1768409893835,0.76819536,944.31,942.76,2.62219105]
[1768409894036,0.18427128,944.97,942.72,0.18437477]
[1768409894339,0.76815875,944.96,942.72,0.18437477]
[1768409894537,0.76815875,944.95,942.72,0.18437477]
[1768409894738,0.76815875,944.94,942.72,0.18437477]
[1768409894938,0.76815875,944.93,942.72,0.18437477]
[1768409895136,0.76815875,944.92,942.72,0.18437477]
[1768409895434,0.76815875,944.91,942.72,0.18437477]
[1768409895738,0.76815875,944.9,942.72,0.18437477]
[1768409896036,0.76815875,944.89,942.72,0.18437477]
[1768409896334,0.76815875,944.88,942.72,0.18437477]
[1768409896535,0.76815875,944.87,942.72,0.18437477]
[1768409896739,0.76815875,944.86,942.72,0.18437477]
[1768409896935,0.76815875,944.85,942.72,0.18437477]
[1768409897140,0.76815875,944.84,942.72,0.18437477]
[1768409897340,0.76815875,944.83,942.72,0.18437477]